[Event "Titled Tuesday Blitz June 13 Early 2023"]
[White "Ronka, Erik"]
[Black "Ashraf, Artin"]
[WhiteFideId "505080"]
[BlackFideId "22514805"]
[WhiteElo "2264"]
[BlackElo "2224"]
[Result "0-1"]
[Round "3"]
[TimeControl "180+2"]
[Date "2023.06.13"]
[WhiteClock "0:00:03"]
[BlackClock "0:00:07"]
[Board "96"]

1. d4 {[%clk 0:03:00]}  Nf6 {[%clk 0:02:48]} 2. c4 {[%clk 0:03:01]}  b6 {[%clk 0:02:48]} 3. f3 {[%clk 0:03:00]}  c5 {[%clk 0:02:16]} 4. d5 {[%clk 0:02:58]}  g6 {[%clk 0:02:16]} 5. e4 {[%clk 0:02:58]}  d6 {[%clk 0:02:16]} 6. Ne2 {[%clk 0:02:58]}  Bg7 {[%clk 0:02:14]} 7. Nec3 {[%clk 0:02:59]}  O-O {[%clk 0:02:13]} 8. Be2 {[%clk 0:02:59]}  e5 {[%clk 0:02:06]} 9. O-O {[%clk 0:02:59]}  Nh5 {[%clk 0:02:03]} 10. Be3 {[%clk 0:02:46]}  Na6 {[%clk 0:01:30]} 11. Nd2 {[%clk 0:02:34]}  Nc7 {[%clk 0:01:22]} 12. a3 {[%clk 0:02:31]}  f5 {[%clk 0:01:14]} 13. b4 {[%clk 0:02:29]}  f4 {[%clk 0:01:06]} 14. Bf2 {[%clk 0:02:29]}  g5 {[%clk 0:01:07]} 15. Rb1 {[%clk 0:01:48]}  Nf6 {[%clk 0:01:02]} 16. g4 {[%clk 0:01:45]}  h5 {[%clk 0:00:29]} 17. h3 {[%clk 0:01:44]}  Kf7 {[%clk 0:00:25]} 18. Kg2 {[%clk 0:01:32]}  Rh8 {[%clk 0:00:25]} 19. Rh1 {[%clk 0:01:31]}  Qe7 {[%clk 0:00:17]} 20. Na2 {[%clk 0:01:16]}  Bd7 {[%clk 0:00:16]} 21. Nc1 {[%clk 0:01:16]}  Rh7 {[%clk 0:00:16]} 22. Nd3 {[%clk 0:01:13]}  Rah8 {[%clk 0:00:17]} 23. Qc2 {[%clk 0:01:14]}  Rh6 {[%clk 0:00:08]} 24. a4 {[%clk 0:00:46]}  R8h7 {[%clk 0:00:07]} 25. a5 {[%clk 0:00:46]}  Na8 {[%clk 0:00:04]} 26. axb6 {[%clk 0:00:45]}  axb6 {[%clk 0:00:05]} 27. bxc5 {[%clk 0:00:44]}  bxc5 {[%clk 0:00:06]} 28. Qa2 {[%clk 0:00:44]}  Qd8 {[%clk 0:00:05]} 29. Qa7 {[%clk 0:00:39]}  Qh8 {[%clk 0:00:02]} 30. Rb8 {[%clk 0:00:17]}  Bf8 {[%clk 0:00:01]} 31. Rd8 {[%clk 0:00:08]}  hxg4 {[%clk 0:00:01]} 32. Rxd7+ {[%clk 0:00:08]}  Nxd7 {[%clk 0:00:02]} 33. Qxd7+ {[%clk 0:00:09]}  Be7 {[%clk 0:00:02]} 34. Qe6+ {[%clk 0:00:09]}  Rxe6 {[%clk 0:00:02]} 35. dxe6+ {[%clk 0:00:08]}  Kxe6 {[%clk 0:00:03]} 36. fxg4 {[%clk 0:00:07]}  Nb6 {[%clk 0:00:03]} 37. Nf3 {[%clk 0:00:07]}  Nd7 {[%clk 0:00:03]} 38. h4 {[%clk 0:00:07]}  gxh4 {[%clk 0:00:03]} 39. g5 {[%clk 0:00:07]}  h3+ {[%clk 0:00:03]} 40. Kf1 {[%clk 0:00:07]}  Nf8 {[%clk 0:00:04]} 41. Nh2 {[%clk 0:00:07]}  Bxg5 {[%clk 0:00:04]} 42. Bg4+ {[%clk 0:00:07]}  Kf7 {[%clk 0:00:05]} 43. Nf3 {[%clk 0:00:08]}  Be7 {[%clk 0:00:05]} 44. Ke2 {[%clk 0:00:08]}  Ne6 {[%clk 0:00:06]} 45. Be1 {[%clk 0:00:03]}  h2 {[%clk 0:00:05]} 46. Kd1 {[%clk 0:00:02]}  Qg8 {[%clk 0:00:03]} 47. Bf5 {[%clk 0:00:02]}  Nd4 {[%clk 0:00:02]} 48. Nxd4 {[%clk 0:00:01]}  cxd4 {[%clk 0:00:02]} 49. Nxe5+ {[%clk 0:00:01]}  dxe5 {[%clk 0:00:02]} 50. c5 {[%clk 0:00:02]}  Rh6 {[%clk 0:00:02]} 51. c6 {[%clk 0:00:01]}  Qd8 {[%clk 0:00:02]} 52. Rf1 {[%clk 0:00:02]}  Rxc6 {[%clk 0:00:02]} 53. Be6+ {[%clk 0:00:02]}  Rxe6 {[%clk 0:00:02]} 54. Ke2 {[%clk 0:00:03]}  Rf6 {[%clk 0:00:03]} 55. Kf3 {[%clk 0:00:04]}  d3 {[%clk 0:00:04]} 56. Rh1 {[%clk 0:00:05]}  Qd4 {[%clk 0:00:04]} 57. Bf2 {[%clk 0:00:05]}  Qe3+ {[%clk 0:00:05]} 58. Bxe3 {[%clk 0:00:04]}  fxe3+ {[%clk 0:00:06]} 59. Kxe3 {[%clk 0:00:05]}  Bc5+ {[%clk 0:00:06]} 60. Kxd3 {[%clk 0:00:05]}  Bg1 {[%clk 0:00:07]} 61. Ke2 {[%clk 0:00:03]}  Kg6 {[%clk 0:00:07]} 0-1


[Site "https://www.chess.com"]

[Event "Titled Tuesday Blitz June 13 Early 2023"]
[White "Manukyan, Sargis V."]
[Black "Perera Alfonso, Rene Humberto"]
[WhiteFideId "13303465"]
[BlackFideId "3514722"]
[WhiteElo "2236"]
[BlackElo "2313"]
[Result "1/2-1/2"]
[Round "3"]
[TimeControl "180+2"]
[Date "2023.06.13"]
[WhiteClock "0:00:09"]
[BlackClock "0:00:53"]
[Board "97"]

1. d4 {[%clk 0:02:56]}  d5 {[%clk 0:02:59]} 2. c4 {[%clk 0:02:56]}  c6 {[%clk 0:02:59]} 3. Nf3 {[%clk 0:02:55]}  Nf6 {[%clk 0:02:59]} 4. e3 {[%clk 0:02:56]}  Bg4 {[%clk 0:02:58]} 5. h3 {[%clk 0:02:54]}  Bh5 {[%clk 0:02:58]} 6. g4 {[%clk 0:02:54]}  Bg6 {[%clk 0:02:58]} 7. Ne5 {[%clk 0:02:54]}  Nbd7 {[%clk 0:02:49]} 8. Nxg6 {[%clk 0:02:52]}  hxg6 {[%clk 0:02:50]} 9. Nd2 {[%clk 0:02:51]}  e6 {[%clk 0:02:49]} 10. Bg2 {[%clk 0:02:46]}  Bd6 {[%clk 0:02:49]} 11. O-O {[%clk 0:02:40]}  Qc7 {[%clk 0:02:47]} 12. g5 {[%clk 0:02:32]}  Ng8 {[%clk 0:02:44]} 13. e4 {[%clk 0:02:30]}  dxe4 {[%clk 0:02:41]} 14. Nxe4 {[%clk 0:02:30]}  Ne7 {[%clk 0:02:35]} 15. c5 {[%clk 0:02:17]}  Bf4 {[%clk 0:02:33]} 16. Bxf4 {[%clk 0:02:13]}  Qxf4 {[%clk 0:02:34]} 17. Nd6+ {[%clk 0:02:14]}  Kf8 {[%clk 0:02:33]} 18. Qg4 {[%clk 0:01:56]}  Qxg4 {[%clk 0:02:30]} 19. hxg4 {[%clk 0:01:52]}  Rb8 {[%clk 0:02:30]} 20. b4 {[%clk 0:01:32]}  Rh4 {[%clk 0:02:23]} 21. Bf3 {[%clk 0:01:19]}  Nc8 {[%clk 0:02:16]} 22. Nc4 {[%clk 0:00:56]}  Ne7 {[%clk 0:02:11]} 23. Kg2 {[%clk 0:00:54]}  Nd5 {[%clk 0:02:10]} 24. Kg3 {[%clk 0:00:52]}  Rh7 {[%clk 0:02:08]} 25. Rab1 {[%clk 0:00:41]}  Ke7 {[%clk 0:02:06]} 26. Rb3 {[%clk 0:00:30]}  Rbh8 {[%clk 0:02:05]} 27. Bg2 {[%clk 0:00:29]}  f6 {[%clk 0:01:57]} 28. f4 {[%clk 0:00:24]}  Rh2 {[%clk 0:01:45]} 29. Na5 {[%clk 0:00:22]}  e5 {[%clk 0:01:26]} 30. dxe5 {[%clk 0:00:18]}  fxe5 {[%clk 0:01:21]} 31. f5 {[%clk 0:00:18]}  Nf4 {[%clk 0:01:19]} 32. Rf2 {[%clk 0:00:15]}  Nxg2 {[%clk 0:01:16]} 33. Rxg2 {[%clk 0:00:14]}  R8h3+ {[%clk 0:01:15]} 34. Kf2 {[%clk 0:00:14]}  Rxb3 {[%clk 0:01:11]} 35. axb3 {[%clk 0:00:13]}  Rxg2+ {[%clk 0:01:10]} 36. Kxg2 {[%clk 0:00:13]}  gxf5 {[%clk 0:01:11]} 37. gxf5 {[%clk 0:00:14]}  e4 {[%clk 0:01:07]} 38. Kg3 {[%clk 0:00:14]}  Ne5 {[%clk 0:01:07]} 39. Kf4 {[%clk 0:00:14]}  Nd3+ {[%clk 0:01:07]} 40. Kxe4 {[%clk 0:00:14]}  Nxb4 {[%clk 0:01:08]} 41. Nxb7 {[%clk 0:00:14]}  Kd7 {[%clk 0:01:06]} 42. Na5 {[%clk 0:00:13]}  Na6 {[%clk 0:01:05]} 43. Kd4 {[%clk 0:00:12]}  Nb4 {[%clk 0:01:05]} 44. Ke5 {[%clk 0:00:12]}  Nd3+ {[%clk 0:01:04]} 45. Kd4 {[%clk 0:00:12]}  Nb4 {[%clk 0:01:03]} 46. Nb7 {[%clk 0:00:11]}  Nc2+ {[%clk 0:01:01]} 47. Ke4 {[%clk 0:00:10]}  Nb4 {[%clk 0:01:00]} 48. Nd6 {[%clk 0:00:10]}  Nd5 {[%clk 0:00:59]} 49. Ke5 {[%clk 0:00:09]}  Nb4 {[%clk 0:00:55]} 50. f6 {[%clk 0:00:10]}  gxf6+ {[%clk 0:00:56]} 51. Kxf6 {[%clk 0:00:08]}  Nd5+ {[%clk 0:00:54]} 52. Kf7 {[%clk 0:00:08]}  Nf4 {[%clk 0:00:52]} 53. g6 {[%clk 0:00:08]}  Nxg6 {[%clk 0:00:51]} 54. Kxg6 {[%clk 0:00:09]}  Ke6 {[%clk 0:00:51]} 55. Nc8 {[%clk 0:00:09]}  Kd5 {[%clk 0:00:52]} 56. Nxa7 {[%clk 0:00:09]}  Kxc5 {[%clk 0:00:53]} 57. Kf6 {[%clk 0:00:09]}  Kb4 {[%clk 0:00:53]} 58. Nxc6+ {[%clk 0:00:09]}  Kxb3 {[%clk 0:00:53]} 1/2-1/2


[Site "https://www.chess.com"]

[Event "Titled Tuesday Blitz June 13 Early 2023"]
[White "Ajay Karthikeyan"]
[Black "Gonzalez Zamora, Juan Carlos"]
[WhiteFideId "35011685"]
[BlackFideId "3507548"]
[WhiteElo "2321"]
[BlackElo "2522"]
[Result "1/2-1/2"]
[Round "3"]
[TimeControl "180+2"]
[Date "2023.06.13"]
[WhiteClock "0:00:54"]
[BlackClock "0:00:12"]
[Board "99"]

1. d4 {[%clk 0:03:00]}  Nf6 {[%clk 0:02:59]} 2. Nf3 {[%clk 0:02:59]}  g6 {[%clk 0:03:00]} 3. Bf4 {[%clk 0:02:59]}  Bg7 {[%clk 0:03:00]} 4. e3 {[%clk 0:02:59]}  c5 {[%clk 0:03:00]} 5. c3 {[%clk 0:02:59]}  O-O {[%clk 0:03:00]} 6. h3 {[%clk 0:02:59]}  Qb6 {[%clk 0:03:00]} 7. b3 {[%clk 0:02:55]}  d6 {[%clk 0:02:56]} 8. Bd3 {[%clk 0:02:52]}  Nc6 {[%clk 0:02:55]} 9. Bh2 {[%clk 0:02:51]}  cxd4 {[%clk 0:02:52]} 10. exd4 {[%clk 0:02:49]}  e5 {[%clk 0:02:52]} 11. dxe5 {[%clk 0:02:30]}  dxe5 {[%clk 0:02:53]} 12. Be2 {[%clk 0:01:51]}  e4 {[%clk 0:02:50]} 13. Ne5 {[%clk 0:01:51]}  Rd8 {[%clk 0:02:26]} 14. Qc2 {[%clk 0:01:45]}  Nxe5 {[%clk 0:01:46]} 15. Bxe5 {[%clk 0:01:43]}  Ng4 {[%clk 0:01:47]} 16. Bg3 {[%clk 0:01:40]}  Ne5 {[%clk 0:01:32]} 17. O-O {[%clk 0:01:39]}  Bf5 {[%clk 0:01:31]} 18. Qc1 {[%clk 0:01:37]}  Nd3 {[%clk 0:01:29]} 19. Bxd3 {[%clk 0:01:36]}  exd3 {[%clk 0:01:30]} 20. Nd2 {[%clk 0:01:36]}  Rac8 {[%clk 0:01:28]} 21. Nc4 {[%clk 0:01:36]}  Rxc4 {[%clk 0:01:21]} 22. bxc4 {[%clk 0:01:31]}  d2 {[%clk 0:01:21]} 23. Qa3 {[%clk 0:01:30]}  Bd3 {[%clk 0:01:05]} 24. Rfd1 {[%clk 0:01:28]}  Bc2 {[%clk 0:00:59]} 25. Bf4 {[%clk 0:01:28]}  Bxd1 {[%clk 0:00:48]} 26. Rxd1 {[%clk 0:01:29]}  Rd3 {[%clk 0:00:36]} 27. Rxd2 {[%clk 0:01:17]}  Qb1+ {[%clk 0:00:31]} 28. Kh2 {[%clk 0:01:16]}  Rxd2 {[%clk 0:00:25]} 29. Bxd2 {[%clk 0:01:16]}  Be5+ {[%clk 0:00:20]} 30. g3 {[%clk 0:01:15]}  Qc2 {[%clk 0:00:14]} 31. Be3 {[%clk 0:01:14]}  Qxc3 {[%clk 0:00:10]} 32. Qxc3 {[%clk 0:01:14]}  Bxc3 {[%clk 0:00:10]} 33. Bxa7 {[%clk 0:01:14]}  f5 {[%clk 0:00:10]} 34. Kg2 {[%clk 0:01:14]}  Kf7 {[%clk 0:00:10]} 35. Kf3 {[%clk 0:01:15]}  Ke6 {[%clk 0:00:10]} 36. Ke2 {[%clk 0:01:16]}  Kd6 {[%clk 0:00:10]} 37. Kd3 {[%clk 0:01:16]}  Bf6 {[%clk 0:00:10]} 38. Bd4 {[%clk 0:01:16]}  Bd8 {[%clk 0:00:09]} 39. a4 {[%clk 0:01:17]}  Kc6 {[%clk 0:00:09]} 40. f3 {[%clk 0:01:17]}  Bc7 {[%clk 0:00:09]} 41. g4 {[%clk 0:01:17]}  fxg4 {[%clk 0:00:10]} 42. fxg4 {[%clk 0:01:16]}  Bg3 {[%clk 0:00:09]} 43. Ke4 {[%clk 0:01:17]}  Kd6 {[%clk 0:00:09]} 44. Be3 {[%clk 0:01:14]}  Ke6 {[%clk 0:00:08]} 45. Bf4 {[%clk 0:01:14]}  Bf2 {[%clk 0:00:09]} 46. Kd3 {[%clk 0:01:12]}  Bb6 {[%clk 0:00:04]} 47. Kc3 {[%clk 0:01:12]}  Ba5+ {[%clk 0:00:04]} 48. Kb3 {[%clk 0:01:13]}  Kd7 {[%clk 0:00:04]} 49. c5 {[%clk 0:01:13]}  Kc6 {[%clk 0:00:04]} 50. Kc4 {[%clk 0:01:14]}  Be1 {[%clk 0:00:03]} 51. Bd6 {[%clk 0:01:14]}  Bf2 {[%clk 0:00:03]} 52. Kb4 {[%clk 0:01:13]}  Be1+ {[%clk 0:00:03]} 53. Kb3 {[%clk 0:01:14]}  Bf2 {[%clk 0:00:04]} 54. Kc4 {[%clk 0:01:15]}  Be1 {[%clk 0:00:04]} 55. Be5 {[%clk 0:01:14]}  Bf2 {[%clk 0:00:04]} 56. Bd4 {[%clk 0:01:14]}  Bg3 {[%clk 0:00:05]} 57. Be3 {[%clk 0:01:05]}  Bh4 {[%clk 0:00:05]} 58. Kd3 {[%clk 0:01:06]}  Be7 {[%clk 0:00:05]} 59. Kc4 {[%clk 0:01:05]}  Bh4 {[%clk 0:00:05]} 60. Bg1 {[%clk 0:01:06]}  Be7 {[%clk 0:00:05]} 61. Bf2 {[%clk 0:01:06]}  Bf6 {[%clk 0:00:05]} 62. h4 {[%clk 0:01:06]}  Be7 {[%clk 0:00:05]} 63. h5 {[%clk 0:01:05]}  gxh5 {[%clk 0:00:06]} 64. gxh5 {[%clk 0:01:06]}  Bf6 {[%clk 0:00:06]} 65. Be3 {[%clk 0:01:06]}  Be7 {[%clk 0:00:06]} 66. Bd4 {[%clk 0:01:05]}  Bg5 {[%clk 0:00:06]} 67. Kd3 {[%clk 0:01:05]}  Be7 {[%clk 0:00:06]} 68. Ke4 {[%clk 0:01:05]}  Bxc5 {[%clk 0:00:04]} 69. Bxc5 {[%clk 0:00:59]}  Kxc5 {[%clk 0:00:05]} 70. Ke5 {[%clk 0:00:59]}  Kb4 {[%clk 0:00:05]} 71. h6 {[%clk 0:00:55]}  Kxa4 {[%clk 0:00:06]} 72. Kf6 {[%clk 0:00:55]}  b5 {[%clk 0:00:06]} 73. Kg7 {[%clk 0:00:56]}  b4 {[%clk 0:00:07]} 74. Kxh7 {[%clk 0:00:57]}  b3 {[%clk 0:00:08]} 75. Kg7 {[%clk 0:00:54]}  b2 {[%clk 0:00:09]} 76. h7 {[%clk 0:00:55]}  b1=Q {[%clk 0:00:10]} 77. h8=Q {[%clk 0:00:55]}  Qb2+ {[%clk 0:00:11]} 78. Kg8 {[%clk 0:00:54]}  Qxh8+ {[%clk 0:00:12]} 79. Kxh8 {[%clk 0:00:54]} 1/2-1/2


[Site "https://www.chess.com"]

[Event "Titled Tuesday Blitz June 13 Early 2023"]
[White "Kovalevsky, Stanislav"]
[Black "Sieciechowicz, Marcin"]
[WhiteFideId "13508598"]
[BlackFideId "1130170"]
[WhiteElo "2112"]
[BlackElo "2301"]
[Result "1-0"]
[Round "3"]
[TimeControl "180+2"]
[Date "2023.06.13"]
[WhiteClock "0:00:05"]
[BlackClock "0:00:00"]
[Board "100"]

1. c4 {[%clk 0:03:00]}  Nf6 {[%clk 0:02:58]} 2. Nc3 {[%clk 0:03:01]}  g6 {[%clk 0:02:58]} 3. g3 {[%clk 0:03:01]}  Bg7 {[%clk 0:02:58]} 4. Bg2 {[%clk 0:03:02]}  O-O {[%clk 0:02:58]} 5. b4 {[%clk 0:03:02]}  a5 {[%clk 0:02:58]} 6. b5 {[%clk 0:03:02]}  c6 {[%clk 0:02:58]} 7. Bb2 {[%clk 0:03:02]}  d5 {[%clk 0:02:58]} 8. cxd5 {[%clk 0:02:59]}  Nxd5 {[%clk 0:02:57]} 9. bxc6 {[%clk 0:02:55]}  Nxc3 {[%clk 0:02:50]} 10. Bxc3 {[%clk 0:02:40]}  Nxc6 {[%clk 0:02:42]} 11. Bxg7 {[%clk 0:02:35]}  Kxg7 {[%clk 0:02:43]} 12. Nf3 {[%clk 0:02:35]}  Qd6 {[%clk 0:02:39]} 13. O-O {[%clk 0:02:34]}  Be6 {[%clk 0:02:40]} 14. d3 {[%clk 0:02:33]}  b5 {[%clk 0:02:38]} 15. Qd2 {[%clk 0:02:23]}  b4 {[%clk 0:02:36]} 16. Rfc1 {[%clk 0:02:22]}  Rac8 {[%clk 0:02:36]} 17. Qg5 {[%clk 0:02:15]}  h6 {[%clk 0:02:14]} 18. Qc5 {[%clk 0:02:14]}  Qxc5 {[%clk 0:02:08]} 19. Rxc5 {[%clk 0:02:15]}  a4 {[%clk 0:02:08]} 20. e3 {[%clk 0:01:43]}  b3 {[%clk 0:02:05]} 21. axb3 {[%clk 0:01:41]}  axb3 {[%clk 0:02:04]} 22. Nd2 {[%clk 0:01:35]}  Nb4 {[%clk 0:01:58]} 23. Rxc8 {[%clk 0:01:34]}  Rxc8 {[%clk 0:01:59]} 24. Rb1 {[%clk 0:01:30]}  Nxd3 {[%clk 0:01:39]} 25. Nxb3 {[%clk 0:01:28]}  Bxb3 {[%clk 0:01:26]} 26. Rxb3 {[%clk 0:01:28]}  Rc1+ {[%clk 0:01:27]} 27. Bf1 {[%clk 0:01:28]}  Ne1 {[%clk 0:01:27]} 28. e4 {[%clk 0:01:16]}  g5 {[%clk 0:01:26]} 29. f3 {[%clk 0:01:05]}  h5 {[%clk 0:01:24]} 30. Kf2 {[%clk 0:01:03]}  g4 {[%clk 0:01:21]} 31. fxg4 {[%clk 0:01:01]}  hxg4 {[%clk 0:01:22]} 32. Be2 {[%clk 0:01:01]}  Kf6 {[%clk 0:00:59]} 33. Bxg4 {[%clk 0:01:00]}  Ke5 {[%clk 0:01:00]} 34. h4 {[%clk 0:00:52]}  Ra1 {[%clk 0:00:49]} 35. h5 {[%clk 0:00:43]}  Nc2 {[%clk 0:00:49]} 36. Rb5+ {[%clk 0:00:39]}  Kf6 {[%clk 0:00:43]} 37. h6 {[%clk 0:00:29]}  Nd4 {[%clk 0:00:31]} 38. Rh5 {[%clk 0:00:27]}  Ra8 {[%clk 0:00:24]} 39. Ke3 {[%clk 0:00:20]}  e5 {[%clk 0:00:24]} 40. h7 {[%clk 0:00:16]}  Rh8 {[%clk 0:00:24]} 41. Bh3 {[%clk 0:00:12]}  Nc6 {[%clk 0:00:23]} 42. Rf5+ {[%clk 0:00:11]}  Kg6 {[%clk 0:00:23]} 43. Rf1 {[%clk 0:00:07]}  Ne7 {[%clk 0:00:22]} 44. Rh1 {[%clk 0:00:06]}  Kg5 {[%clk 0:00:13]} 45. Kf3 {[%clk 0:00:06]}  Rxh7 {[%clk 0:00:12]} 46. Bg2 {[%clk 0:00:06]}  Rxh1 {[%clk 0:00:11]} 47. Bxh1 {[%clk 0:00:07]}  Nc6 {[%clk 0:00:11]} 48. Ke3 {[%clk 0:00:07]}  Nd4 {[%clk 0:00:12]} 49. Bf3 {[%clk 0:00:07]}  Ne6 {[%clk 0:00:12]} 50. Be2 {[%clk 0:00:07]}  Nc5 {[%clk 0:00:12]} 51. Bd1 {[%clk 0:00:07]}  Kf6 {[%clk 0:00:13]} 52. Be2 {[%clk 0:00:07]}  Ke6 {[%clk 0:00:13]} 53. Bd1 {[%clk 0:00:08]}  Kd6 {[%clk 0:00:13]} 54. Be2 {[%clk 0:00:08]}  Ne6 {[%clk 0:00:13]} 55. Bd1 {[%clk 0:00:08]}  Nd4 {[%clk 0:00:14]} 56. Bg4 {[%clk 0:00:08]}  Kc5 {[%clk 0:00:14]} 57. Bh5 {[%clk 0:00:08]}  f6 {[%clk 0:00:14]} 58. Bg4 {[%clk 0:00:08]}  Kb4 {[%clk 0:00:15]} 59. Bh5 {[%clk 0:00:08]}  Kc3 {[%clk 0:00:15]} 60. Bg4 {[%clk 0:00:09]}  Kc2 {[%clk 0:00:15]} 61. Bh5 {[%clk 0:00:09]}  Kc3 {[%clk 0:00:15]} 62. Bg4 {[%clk 0:00:10]}  Kc4 {[%clk 0:00:16]} 63. Bh5 {[%clk 0:00:10]}  Kc5 {[%clk 0:00:15]} 64. Bg4 {[%clk 0:00:11]}  Kd6 {[%clk 0:00:15]} 65. Bh5 {[%clk 0:00:11]}  Ne6 {[%clk 0:00:16]} 66. Bg4 {[%clk 0:00:11]}  Ng5 {[%clk 0:00:15]} 67. Be2 {[%clk 0:00:12]}  Kc5 {[%clk 0:00:15]} 68. Bd1 {[%clk 0:00:12]}  Kc4 {[%clk 0:00:15]} 69. Be2+ {[%clk 0:00:12]}  Kc3 {[%clk 0:00:15]} 70. Bg4 {[%clk 0:00:13]}  Kc4 {[%clk 0:00:12]} 71. Be2+ {[%clk 0:00:13]}  Kc5 {[%clk 0:00:13]} 72. Bg4 {[%clk 0:00:13]}  Nf7 {[%clk 0:00:13]} 73. Be2 {[%clk 0:00:14]}  Nd6 {[%clk 0:00:13]} 74. Bh5 {[%clk 0:00:14]}  Nc4+ {[%clk 0:00:13]} 75. Kd3 {[%clk 0:00:13]}  Nb2+ {[%clk 0:00:13]} 76. Ke3 {[%clk 0:00:13]}  Na4 {[%clk 0:00:12]} 77. Bd1 {[%clk 0:00:12]}  Nc3 {[%clk 0:00:11]} 78. Bh5 {[%clk 0:00:13]}  Nb5 {[%clk 0:00:08]} 79. Be2 {[%clk 0:00:12]}  Nd6 {[%clk 0:00:07]} 80. Bg4 {[%clk 0:00:12]}  Kc4 {[%clk 0:00:08]} 81. Be6+ {[%clk 0:00:11]}  Kc3 {[%clk 0:00:08]} 82. Bg4 {[%clk 0:00:12]}  Nc4+ {[%clk 0:00:08]} 83. Kf3 {[%clk 0:00:12]}  Kd4 {[%clk 0:00:08]} 84. Bf5 {[%clk 0:00:12]}  Nd6 {[%clk 0:00:08]} 85. Bg6 {[%clk 0:00:12]}  Nc4 {[%clk 0:00:08]} 86. Bf5 {[%clk 0:00:11]}  Nd2+ {[%clk 0:00:08]} 87. Kg4 {[%clk 0:00:10]}  Nxe4 {[%clk 0:00:09]} 88. Be6 {[%clk 0:00:09]}  Nd6 {[%clk 0:00:09]} 89. Kf3 {[%clk 0:00:09]}  e4+ {[%clk 0:00:08]} 90. Kf4 {[%clk 0:00:09]}  e3 {[%clk 0:00:08]} 91. Bg4 {[%clk 0:00:09]}  Kd3 {[%clk 0:00:07]} 92. Bf3 {[%clk 0:00:08]}  Kd4 {[%clk 0:00:04]} 93. g4 {[%clk 0:00:08]}  Nf7 {[%clk 0:00:05]} 94. Kf5 {[%clk 0:00:08]}  Ne5 {[%clk 0:00:04]} 95. Be2 {[%clk 0:00:06]}  Nd3 {[%clk 0:00:04]} 96. Kxf6 {[%clk 0:00:05]}  Ke4 {[%clk 0:00:05]} 97. g5 {[%clk 0:00:05]}  Nf4 {[%clk 0:00:05]} 98. Bf1 {[%clk 0:00:04]}  Kf3 {[%clk 0:00:05]} 99. g6 {[%clk 0:00:04]}  Kf2 {[%clk 0:00:03]} 100. Ba6 {[%clk 0:00:01]}  Nh5+ {[%clk 0:00:03]} 101. Kg5 {[%clk 0:00:01]}  Ng7 {[%clk 0:00:04]} 102. Kf6 {[%clk 0:00:01]}  Ne8+ {[%clk 0:00:04]} 103. Ke7 {[%clk 0:00:01]}  Nc7 {[%clk 0:00:04]} 104. g7 {[%clk 0:00:01]}  Nxa6 {[%clk 0:00:04]} 105. g8=Q {[%clk 0:00:01]}  e2 {[%clk 0:00:05]} 106. Qf7+ {[%clk 0:00:02]}  Kg1 {[%clk 0:00:05]} 107. Qg6+ {[%clk 0:00:02]}  Kf1 {[%clk 0:00:05]} 108. Qf5+ {[%clk 0:00:03]}  Kg1 {[%clk 0:00:06]} 109. Qg4+ {[%clk 0:00:03]}  Kf1 {[%clk 0:00:06]} 110. Qf4+ {[%clk 0:00:04]}  Kg1 {[%clk 0:00:06]} 111. Qg3+ {[%clk 0:00:04]}  Kf1 {[%clk 0:00:07]} 112. Qf3+ {[%clk 0:00:05]}  Ke1 {[%clk 0:00:07]} 113. Kd6 {[%clk 0:00:04]}  Nb4 {[%clk 0:00:07]} 114. Kc5 {[%clk 0:00:04]}  Nc2 {[%clk 0:00:07]} 115. Kc4 {[%clk 0:00:04]}  Kd2 {[%clk 0:00:07]} 116. Qc3+ {[%clk 0:00:04]}  Kd1 {[%clk 0:00:07]} 117. Qd3+ {[%clk 0:00:05]}  Ke1 {[%clk 0:00:00]} 118. Qxc2 {[%clk 0:00:05]} 1-0


[Site "https://www.chess.com"]

[Event "Titled Tuesday Blitz June 13 Early 2023"]
[White "Koshulyan, Egor A."]
[Black "Estrada Nieto, Julian"]
[WhiteFideId "24237000"]
[BlackFideId "5101018"]
[WhiteElo "2216"]
[BlackElo "2161"]
[Result "1-0"]
[Round "3"]
[TimeControl "180+2"]
[Date "2023.06.13"]
[WhiteClock "0:01:45"]
[BlackClock "0:00:00"]
[Board "101"]

1. e4 {[%clk 0:02:40]}  e5 {[%clk 0:02:59]} 2. Nf3 {[%clk 0:02:39]}  Nc6 {[%clk 0:02:59]} 3. Bb5 {[%clk 0:02:36]}  a6 {[%clk 0:03:00]} 4. Ba4 {[%clk 0:02:36]}  Nf6 {[%clk 0:03:00]} 5. O-O {[%clk 0:02:34]}  Be7 {[%clk 0:02:59]} 6. Re1 {[%clk 0:02:34]}  b5 {[%clk 0:02:58]} 7. Bb3 {[%clk 0:02:34]}  d6 {[%clk 0:02:59]} 8. c3 {[%clk 0:02:34]}  O-O {[%clk 0:02:59]} 9. h3 {[%clk 0:02:35]}  Bb7 {[%clk 0:02:59]} 10. d4 {[%clk 0:02:34]}  Re8 {[%clk 0:02:54]} 11. Ng5 {[%clk 0:02:33]}  Rf8 {[%clk 0:02:54]} 12. Nf3 {[%clk 0:02:33]}  Re8 {[%clk 0:02:54]} 13. a4 {[%clk 0:02:33]}  h6 {[%clk 0:02:51]} 14. Na3 {[%clk 0:02:30]}  Bf8 {[%clk 0:02:48]} 15. Rb1 {[%clk 0:02:26]}  Na5 {[%clk 0:02:03]} 16. Bc2 {[%clk 0:02:23]}  bxa4 {[%clk 0:01:57]} 17. d5 {[%clk 0:02:23]}  Nb3 {[%clk 0:01:49]} 18. Be3 {[%clk 0:02:22]}  c6 {[%clk 0:01:47]} 19. Nc4 {[%clk 0:02:13]}  cxd5 {[%clk 0:01:44]} 20. Nb6 {[%clk 0:02:13]}  d4 {[%clk 0:01:36]} 21. cxd4 {[%clk 0:02:13]}  exd4 {[%clk 0:01:26]} 22. Nxd4 {[%clk 0:02:13]}  Qxb6 {[%clk 0:01:10]} 23. Nxb3 {[%clk 0:02:13]}  Qc7 {[%clk 0:01:03]} 24. Nd2 {[%clk 0:02:12]}  Nxe4 {[%clk 0:00:55]} 25. Bxa4 {[%clk 0:02:12]}  Re6 {[%clk 0:00:43]} 26. Rc1 {[%clk 0:02:10]}  Qe7 {[%clk 0:00:24]} 27. Bb3 {[%clk 0:02:09]}  Rg6 {[%clk 0:00:14]} 28. Nf3 {[%clk 0:02:08]}  Qf6 {[%clk 0:00:07]} 29. Kh1 {[%clk 0:01:48]}  Re8 {[%clk 0:00:06]} 30. Bd5 {[%clk 0:01:45]}  Bxd5 {[%clk 0:00:05]} 31. Qxd5 {[%clk 0:01:46]}  Nc5 {[%clk 0:00:04]} 32. Bd4 {[%clk 0:01:44]}  Rxe1+ {[%clk 0:00:04]} 33. Rxe1 {[%clk 0:01:45]}  Qd8 {[%clk 0:00:00]} 34. Bxc5 {[%clk 0:01:45]} 1-0


[Site "https://www.chess.com"]